[Event "*** SCC Grand Prix: Titled Tuesday Blitz"]
[Site "Chess.com"]
[Date "2020.09.08"]
[Round "8"]
[White "PowerThinking2650"]
[Black "Thereisnof0rk"]
[Result "1-0"]
[WhiteElo "2398"]
[BlackElo "2232"]
[TimeControl "180+1"]
[EndTime "11:34:51 PDT"]
[Termination "PowerThinking2650 won on time"]

1. e4 {[%clk 0:03:00.9]} 1... c5 {[%clk 0:02:23.4]} 2. Nf3 {[%clk 0:02:56.9]}
2... d6 {[%clk 0:02:23.8]} 3. d4 {[%clk 0:02:57]} 3... Nf6 {[%clk 0:02:24.4]} 4.
Nc3 {[%clk 0:02:56.3]} 4... cxd4 {[%clk 0:02:24.9]} 5. Nxd4 {[%clk 0:02:57.2]}
5... a6 {[%clk 0:02:25.3]} 6. Bc4 {[%clk 0:02:56.4]} 6... e6 {[%clk 0:02:24.6]}
7. O-O {[%clk 0:02:55.4]} 7... Be7 {[%clk 0:02:24.4]} 8. f4 {[%clk 0:02:55]}
8... O-O {[%clk 0:02:10.4]} 9. f5 {[%clk 0:02:54.7]} 9... b5 {[%clk 0:01:51.3]}
10. Bb3 {[%clk 0:02:51.4]} 10... b4 {[%clk 0:01:50.8]} 11. Na4 {[%clk
0:02:50.1]} 11... e5 {[%clk 0:01:45.5]} 12. Ne2 {[%clk 0:02:47.9]} 12... Bb7
{[%clk 0:01:28.4]} 13. Ng3 {[%clk 0:02:10.3]} 13... Nxe4 {[%clk 0:01:28.4]} 14.
Nxe4 {[%clk 0:01:56.1]} 14... Bxe4 {[%clk 0:01:28.5]} 15. Bd5 {[%clk 0:01:53.1]}
15... Bxd5 {[%clk 0:01:28.4]} 16. Qxd5 {[%clk 0:01:53.7]} 16... Nd7 {[%clk
0:01:25.4]} 17. Be3 {[%clk 0:01:53.2]} 17... Nf6 {[%clk 0:01:14.8]} 18. Qf3
{[%clk 0:01:44.9]} 18... d5 {[%clk 0:00:48.2]} 19. Rad1 {[%clk 0:01:39.3]} 19...
d4 {[%clk 0:00:41.6]} 20. Bg5 {[%clk 0:01:39.4]} 20... Qa5 {[%clk 0:00:31.4]}
21. b3 {[%clk 0:01:38.6]} 21... Rac8 {[%clk 0:00:30]} 22. Rd2 {[%clk 0:01:28.1]}
22... Rc6 {[%clk 0:00:16.9]} 23. Qxc6 {[%clk 0:01:22.6]} 1-0

[Event "*** SCC Grand Prix: Titled Tuesday Blitz"]
[Site "Chess.com"]
[Date "2020.09.08"]
[Round "8"]
[White "Sven_Tica"]
[Black "aliba25"]
[Result "0-1"]
[WhiteElo "2690"]
[BlackElo "2580"]
[TimeControl "180+1"]
[EndTime "11:34:52 PDT"]
[Termination "aliba25 won by resignation"]

1. d4 {[%clk 0:03:00.9]} 1... Nf6 {[%clk 0:02:59.6]} 2. c4 {[%clk 0:03:00.7]}
2... c5 {[%clk 0:02:59.7]} 3. d5 {[%clk 0:03:00.8]} 3... b5 {[%clk 0:03:00.1]}
4. cxb5 {[%clk 0:03:01.7]} 4... a6 {[%clk 0:03:00.7]} 5. e3 {[%clk 0:03:02.4]}
5... g6 {[%clk 0:02:59.8]} 6. Nc3 {[%clk 0:03:02.4]} 6... Bg7 {[%clk 0:03:00.4]}
7. Nf3 {[%clk 0:03:03.1]} 7... O-O {[%clk 0:03:00.8]} 8. a4 {[%clk 0:03:03.8]}
8... e6 {[%clk 0:03:00.9]} 9. Ra3 {[%clk 0:02:57.7]} 9... Bb7 {[%clk 0:02:49.2]}
10. Bc4 {[%clk 0:02:47]} 10... axb5 {[%clk 0:02:43.4]} 11. axb5 {[%clk
0:02:47.9]} 11... Rxa3 {[%clk 0:02:37.5]} 12. bxa3 {[%clk 0:02:48.8]} 12... Qa5
{[%clk 0:02:37.7]} 13. Bd2 {[%clk 0:02:32.2]} 13... Qxa3 {[%clk 0:02:36.5]} 14.
e4 {[%clk 0:02:06]} 14... exd5 {[%clk 0:02:30.2]} 15. exd5 {[%clk 0:02:06.9]}
15... Re8+ {[%clk 0:02:29.7]} 16. Kf1 {[%clk 0:02:01.9]} 16... d6 {[%clk
0:02:17.6]} 17. g3 {[%clk 0:01:52.9]} 17... Nbd7 {[%clk 0:02:17.2]} 18. Kg2
{[%clk 0:01:19.9]} 18... Nb6 {[%clk 0:02:16.6]} 19. Bb3 {[%clk 0:01:19.5]} 19...
c4 {[%clk 0:02:10.1]} 20. Bc2 {[%clk 0:01:11.6]} 20... Nfxd5 {[%clk 0:02:08]}
21. Nxd5 {[%clk 0:01:05.6]} 21... Nxd5 {[%clk 0:02:07.9]} 22. Re1 {[%clk
0:01:02.2]} 22... Rxe1 {[%clk 0:02:03.3]} 23. Qxe1 {[%clk 0:01:03.1]} 23... Nc7
{[%clk 0:01:55.1]} 24. Be3 {[%clk 0:00:51.9]} 24... Nxb5 {[%clk 0:01:52]} 25.
Qb1 {[%clk 0:00:45.7]} 25... Bc6 {[%clk 0:01:45.9]} 26. Be4 {[%clk 0:00:44.7]}
26... d5 {[%clk 0:01:34.8]} 27. Bxd5 {[%clk 0:00:42.2]} 27... Bxd5 {[%clk
0:01:34.7]} 28. Qxb5 {[%clk 0:00:42.2]} 28... Qa8 {[%clk 0:01:33.8]} 29. Kh3
{[%clk 0:00:38.6]} 29... Bxf3 {[%clk 0:01:32.9]} 30. Qxc4 {[%clk 0:00:39.1]}
30... h5 {[%clk 0:01:30.4]} 31. Bg5 {[%clk 0:00:32.8]} 31... Bg4+ {[%clk
0:01:20.2]} 32. Kh4 {[%clk 0:00:32.7]} 32... Qg2 {[%clk 0:01:20.8]} 0-1

[Event "*** SCC Grand Prix: Titled Tuesday Blitz"]
[Site "Chess.com"]
[Date "2020.09.08"]
[Round "8"]
[White "FMalexhdez"]
[Black "dosto07"]
[Result "1-0"]
[WhiteElo "2220"]
[BlackElo "2291"]
[TimeControl "180+1"]
[EndTime "11:34:54 PDT"]
[Termination "FMalexhdez won by resignation"]

1. e4 {[%clk 0:03:00.9]} 1... e5 {[%clk 0:02:59.4]} 2. Nf3 {[%clk 0:03:00]} 2...
Nc6 {[%clk 0:02:58.3]} 3. Bc4 {[%clk 0:02:59.9]} 3... Bc5 {[%clk 0:02:57.2]} 4.
d3 {[%clk 0:02:59.9]} 4... d6 {[%clk 0:02:56.2]} 5. O-O {[%clk 0:03:00.4]} 5...
Nf6 {[%clk 0:02:56]} 6. c3 {[%clk 0:03:00.5]} 6... a6 {[%clk 0:02:56]} 7. Bb3
{[%clk 0:02:58.2]} 7... Ba7 {[%clk 0:02:55]} 8. Nbd2 {[%clk 0:02:58.1]} 8... O-O
{[%clk 0:02:53.9]} 9. h3 {[%clk 0:02:48.9]} 9... h6 {[%clk 0:02:49.7]} 10. Re1
{[%clk 0:02:48.9]} 10... Ne7 {[%clk 0:02:49.3]} 11. Nf1 {[%clk 0:02:49]} 11...
Ng6 {[%clk 0:02:47.6]} 12. d4 {[%clk 0:02:44.1]} 12... c6 {[%clk 0:02:40.9]} 13.
Ng3 {[%clk 0:02:43]} 13... Re8 {[%clk 0:02:39.2]} 14. Bc2 {[%clk 0:02:29.5]}
14... Be6 {[%clk 0:02:34.4]} 15. Nf5 {[%clk 0:02:24.4]} 15... exd4 {[%clk
0:02:18.6]} 16. N3xd4 {[%clk 0:02:09.9]} 16... Bc8 {[%clk 0:02:07.9]} 17. Qf3
{[%clk 0:01:40.1]} 17... d5 {[%clk 0:02:03.4]} 18. Nxh6+ {[%clk 0:01:24.6]}
18... gxh6 {[%clk 0:02:00.1]} 19. Bxh6 {[%clk 0:01:25]} 19... dxe4 {[%clk
0:01:54.2]} 20. Qg3 {[%clk 0:01:04.8]} 20... Bxd4 {[%clk 0:01:47.1]} 21. cxd4
{[%clk 0:01:03.3]} 21... Nh5 {[%clk 0:01:32.8]} 22. Qe3 {[%clk 0:00:58.2]} 22...
Qh4 {[%clk 0:01:25.1]} 23. Bg5 {[%clk 0:00:54.3]} 23... Bf5 {[%clk 0:01:04.5]}
24. Bxh4 {[%clk 0:00:53.9]} 24... Nxh4 {[%clk 0:01:03]} 25. Qg5+ {[%clk
0:00:53.2]} 25... Bg6 {[%clk 0:00:56.7]} 26. Qxh4 {[%clk 0:00:52.7]} 26... Rad8
{[%clk 0:00:56.4]} 27. Rad1 {[%clk 0:00:46.2]} 27... Rd5 {[%clk 0:00:55.9]} 28.
Bxe4 {[%clk 0:00:39.6]} 1-0

[Event "*** SCC Grand Prix: Titled Tuesday Blitz"]
[Site "Chess.com"]
[Date "2020.09.08"]
[Round "8"]
[White "Evgeny81"]
[Black "wonderfultime"]
[Result "0-1"]
[WhiteElo "2669"]
[BlackElo "2924"]
[TimeControl "180+1"]
[EndTime "11:35:01 PDT"]
[Termination "wonderfultime won by checkmate"]

1. d4 {[%clk 0:03:00.9]} 1... d5 {[%clk 0:03:00.5]} 2. c4 {[%clk 0:03:01.3]}
2... c6 {[%clk 0:03:01]} 3. Nf3 {[%clk 0:03:01.8]} 3... Nf6 {[%clk 0:03:01.5]}
4. Nbd2 {[%clk 0:03:02.2]} 4... Bf5 {[%clk 0:02:59.9]} 5. Nh4 {[%clk 0:03:00.4]}
5... Be4 {[%clk 0:02:53.2]} 6. e3 {[%clk 0:02:59]} 6... e6 {[%clk 0:02:52.9]} 7.
Be2 {[%clk 0:02:59.1]} 7... Bd6 {[%clk 0:02:51.1]} 8. O-O {[%clk 0:02:57.1]}
8... Nbd7 {[%clk 0:02:49.9]} 9. Nxe4 {[%clk 0:02:55.1]} 9... Nxe4 {[%clk
0:02:48.8]} 10. Nf3 {[%clk 0:02:54.4]} 10... O-O {[%clk 0:02:49.3]} 11. Qc2
{[%clk 0:02:53.4]} 11... f5 {[%clk 0:02:49.5]} 12. b4 {[%clk 0:02:50.4]} 12...
Rf6 {[%clk 0:02:47.5]} 13. b5 {[%clk 0:02:48.7]} 13... Rh6 {[%clk 0:02:45.9]}
14. g3 {[%clk 0:02:48.6]} 14... Rc8 {[%clk 0:02:25.5]} 15. bxc6 {[%clk
0:02:45.6]} 15... bxc6 {[%clk 0:02:24.4]} 16. Rb1 {[%clk 0:02:39.2]} 16... Ndf6
{[%clk 0:02:17.8]} 17. Ne5 {[%clk 0:02:22.3]} 17... Bxe5 {[%clk 0:02:12.7]} 18.
dxe5 {[%clk 0:02:23.2]} 18... Ng4 {[%clk 0:02:13.6]} 19. f3 {[%clk 0:01:50.5]}
19... Nxh2 {[%clk 0:02:13.6]} 20. fxe4 {[%clk 0:01:50.4]} 20... Qg5 {[%clk
0:02:00]} 21. Kg2 {[%clk 0:01:50.3]} 21... Nxf1 {[%clk 0:01:58]} 22. Bxf1 {[%clk
0:01:49.7]} 22... Qh5 {[%clk 0:01:54.5]} 23. Kf2 {[%clk 0:01:40.1]} 23... Qh2+
{[%clk 0:01:50.5]} 24. Bg2 {[%clk 0:01:40.4]} 24... fxe4 {[%clk 0:01:50.9]} 25.
Ba3 {[%clk 0:01:37.3]} 25... Rh5 {[%clk 0:01:40.2]} 26. Rf1 {[%clk 0:01:32]}
26... Rf5+ {[%clk 0:01:38]} 27. Ke1 {[%clk 0:01:32.2]} 27... Qxg3+ {[%clk
0:01:32.7]} 28. Kd1 {[%clk 0:01:31.6]} 28... Rxf1+ {[%clk 0:01:26.8]} 29. Bxf1
{[%clk 0:01:31.5]} 29... Qxe3 {[%clk 0:01:27.2]} 30. Bd6 {[%clk 0:01:21.3]}
30... d4 {[%clk 0:01:19.6]} 31. c5 {[%clk 0:01:15.5]} 31... d3 {[%clk
0:01:17.6]} 32. Qb3 {[%clk 0:01:07.7]} 32... Re8 {[%clk 0:01:17.1]} 33. Qb7
{[%clk 0:01:01.8]} 33... Qf3+ {[%clk 0:01:13.8]} 34. Kd2 {[%clk 0:00:50.4]}
34... Qf2+ {[%clk 0:01:11.3]} 35. Kc3 {[%clk 0:00:49.6]} 35... Qc2+ {[%clk
0:01:08.5]} 36. Kd4 {[%clk 0:00:48.1]} 36... d2 {[%clk 0:01:08.9]} 37. Be2
{[%clk 0:00:46]} 37... d1=Q+ {[%clk 0:01:09.4]} 38. Bxd1 {[%clk 0:00:46.1]}
38... Qd3# {[%clk 0:01:10]} 0-1

[Event "*** SCC Grand Prix: Titled Tuesday Blitz"]
[Site "Chess.com"]
[Date "2020.09.08"]
[Round "8"]
[White "bocah_sakit"]
[Black "PSvidler"]
[Result "1-0"]
[WhiteElo "2683"]
[BlackElo "2902"]
[TimeControl "180+1"]
[EndTime "11:35:12 PDT"]
[Termination "bocah_sakit won by resignation"]

1. e4 {[%clk 0:03:00.9]} 1... c5 {[%clk 0:02:59.5]} 2. Nf3 {[%clk 0:03:01]} 2...
d6 {[%clk 0:02:58.1]} 3. d4 {[%clk 0:03:01.1]} 3... cxd4 {[%clk 0:02:59]} 4.
Nxd4 {[%clk 0:03:02]} 4... Nf6 {[%clk 0:02:59.3]} 5. Nc3 {[%clk 0:03:02.2]} 5...
a6 {[%clk 0:03:00]} 6. Bg5 {[%clk 0:03:02.2]} 6... Nbd7 {[%clk 0:02:59.6]} 7. f4
{[%clk 0:03:02.1]} 7... h6 {[%clk 0:02:57]} 8. Bxf6 {[%clk 0:02:59.4]} 8... Nxf6
{[%clk 0:02:56.8]} 9. f5 {[%clk 0:02:59.9]} 9... g5 {[%clk 0:02:51.9]} 10. fxg6
{[%clk 0:02:59.3]} 10... fxg6 {[%clk 0:02:52.1]} 11. Qf3 {[%clk 0:02:46.7]}
11... Qc7 {[%clk 0:02:40.8]} 12. O-O-O {[%clk 0:02:44]} 12... Bg7 {[%clk
0:02:40.7]} 13. Qg3 {[%clk 0:02:40.6]} 13... g5 {[%clk 0:02:33]} 14. Be2 {[%clk
0:02:25.6]} 14... O-O {[%clk 0:02:30]} 15. h4 {[%clk 0:01:56.6]} 15... Qc5
{[%clk 0:02:29.8]} 16. Nb3 {[%clk 0:01:48.5]} 16... gxh4 {[%clk 0:02:17.3]} 17.
Qxg7+ {[%clk 0:01:40.9]} 17... Kxg7 {[%clk 0:02:17.3]} 18. Nxc5 {[%clk
0:01:41.4]} 18... dxc5 {[%clk 0:02:18]} 19. Rxh4 {[%clk 0:01:41.5]} 19... Be6
{[%clk 0:02:08]} 20. Rdh1 {[%clk 0:01:06.1]} 20... Rh8 {[%clk 0:02:03.5]} 21.
Bf3 {[%clk 0:01:01.6]} 21... Rab8 {[%clk 0:01:39.1]} 22. Ne2 {[%clk 0:00:58]}
22... b5 {[%clk 0:01:36.2]} 23. Nf4 {[%clk 0:00:57.6]} 23... Rb6 {[%clk
0:01:36.1]} 24. e5 {[%clk 0:00:49.2]} 24... Ne8 {[%clk 0:01:26.9]} 25. Bg4
{[%clk 0:00:35.9]} 25... Bf7 {[%clk 0:01:22.1]} 26. Bd7 {[%clk 0:00:27.9]} 26...
Kf8 {[%clk 0:01:05.1]} 27. Rf1 {[%clk 0:00:26.9]} 27... Rg8 {[%clk 0:00:54.9]}
28. Ne6+ {[%clk 0:00:23.6]} 1-0

[Event "*** SCC Grand Prix: Titled Tuesday Blitz"]
[Site "Chess.com"]
[Date "2020.09.08"]
[Round "8"]
[White "Barcelona_Guy"]
[Black "hellokostya"]
[Result "0-1"]
[WhiteElo "2626"]
[BlackElo "2499"]
[TimeControl "180+1"]
[EndTime "11:35:15 PDT"]
[Termination "hellokostya won by resignation"]

1. e4 {[%clk 0:03:00.9]} 1... Nc6 {[%clk 0:02:57]} 2. Nf3 {[%clk 0:03:00.6]}
2... d6 {[%clk 0:02:56.3]} 3. d4 {[%clk 0:02:59.2]} 3... Nf6 {[%clk 0:02:56.4]}
4. Nc3 {[%clk 0:02:56.4]} 4... g6 {[%clk 0:02:56.7]} 5. Be3 {[%clk 0:02:56.9]}
5... Bg7 {[%clk 0:02:55.2]} 6. Qd2 {[%clk 0:02:57.5]} 6... O-O {[%clk
0:02:51.3]} 7. Bh6 {[%clk 0:02:55.6]} 7... a6 {[%clk 0:02:50.5]} 8. h4 {[%clk
0:02:54.5]} 8... b5 {[%clk 0:02:44.6]} 9. d5 {[%clk 0:02:54.3]} 9... b4 {[%clk
0:02:16.9]} 10. Bxg7 {[%clk 0:02:50.9]} 10... Kxg7 {[%clk 0:02:09.2]} 11. dxc6
{[%clk 0:02:45.6]} 11... bxc3 {[%clk 0:02:08.7]} 12. Qxc3 {[%clk 0:02:46.5]}
12... e5 {[%clk 0:02:05.9]} 13. Bd3 {[%clk 0:02:46.7]} 13... Bg4 {[%clk
0:01:51.1]} 14. O-O-O {[%clk 0:02:39.9]} 14... Bxf3 {[%clk 0:01:46.1]} 15. gxf3
{[%clk 0:02:39.9]} 15... Nh5 {[%clk 0:01:45.3]} 16. Kb1 {[%clk 0:02:35.9]} 16...
Qf6 {[%clk 0:01:44.8]} 17. Bc4 {[%clk 0:02:35.2]} 17... Rfb8 {[%clk 0:01:43.8]}
18. Bd5 {[%clk 0:02:35]} 18... Rb6 {[%clk 0:01:42.7]} 19. b3 {[%clk 0:02:26.3]}
19... Rab8 {[%clk 0:01:42.7]} 20. Kb2 {[%clk 0:02:17.7]} 20... h6 {[%clk
0:01:42]} 21. a4 {[%clk 0:02:10.5]} 21... Ra8 {[%clk 0:01:41.1]} 22. a5 {[%clk
0:02:10.2]} 22... Rb5 {[%clk 0:01:38.6]} 23. Ra1 {[%clk 0:02:02.7]} 23... Rc5
{[%clk 0:01:35.9]} 24. Qe3 {[%clk 0:02:01.4]} 24... Rb8 {[%clk 0:01:30.9]} 25.
c4 {[%clk 0:01:57.4]} 25... Nf4 {[%clk 0:01:21.9]} 26. Kc3 {[%clk 0:01:08.4]}
26... Nxd5+ {[%clk 0:01:16.2]} 27. exd5 {[%clk 0:01:08.1]} 27... e4+ {[%clk
0:01:09.7]} 28. Kc2 {[%clk 0:01:04.4]} 28... Rxc4+ {[%clk 0:01:05]} 29. bxc4
{[%clk 0:00:30]} 29... Qb2+ {[%clk 0:01:03.5]} 30. Kd1 {[%clk 0:00:30.3]} 30...
Qxa1+ {[%clk 0:01:03]} 31. Kc2 {[%clk 0:00:27.9]} 31... Rb2+ {[%clk 0:00:56.9]}
32. Kc3 {[%clk 0:00:27.9]} 32... Rb1+ {[%clk 0:00:53.8]} 0-1

[Event "*** SCC Grand Prix: Titled Tuesday Blitz"]
[Site "Chess.com"]
[Date "2020.09.08"]
[Round "8"]
[White "boasovietica"]
[Black "DinaBelenkaya"]
[Result "0-1"]
[WhiteElo "2455"]
[BlackElo "2294"]
[TimeControl "180+1"]
[EndTime "11:35:17 PDT"]
[Termination "DinaBelenkaya won on time"]

1. e4 {[%clk 0:03:00.9]} 1... d5 {[%clk 0:02:59.8]} 2. Nc3 {[%clk 0:02:58.1]}
2... dxe4 {[%clk 0:02:58.7]} 3. Nxe4 {[%clk 0:02:58]} 3... Nf6 {[%clk
0:02:59.6]} 4. Ng3 {[%clk 0:02:53.6]} 4... h5 {[%clk 0:02:57.8]} 5. h4 {[%clk
0:02:40.8]} 5... Bg4 {[%clk 0:02:51.7]} 6. Be2 {[%clk 0:02:35.9]} 6... Nc6
{[%clk 0:02:49.6]} 7. Nf3 {[%clk 0:02:33.6]} 7... e6 {[%clk 0:02:46.8]} 8. d4
{[%clk 0:02:32.4]} 8... Be7 {[%clk 0:02:41.3]} 9. Be3 {[%clk 0:02:31.3]} 9...
Nd5 {[%clk 0:02:33.7]} 10. Qd2 {[%clk 0:02:12.5]} 10... Nxe3 {[%clk 0:02:32.8]}
11. Qxe3 {[%clk 0:01:59.9]} 11... Qd5 {[%clk 0:02:24.3]} 12. a3 {[%clk
0:01:52.3]} 12... O-O-O {[%clk 0:02:23.1]} 13. O-O {[%clk 0:01:01.3]} 13... Nxd4
{[%clk 0:02:12.3]} 14. Rfd1 {[%clk 0:00:25.1]} 14... Nxe2+ {[%clk 0:02:11.9]}
15. Nxe2 {[%clk 0:00:20.5]} 15... Qc5 {[%clk 0:02:12]} 16. Qf4 {[%clk
0:00:15.2]} 16... Bf6 {[%clk 0:01:41.1]} 17. Nc3 {[%clk 0:00:09]} 17... e5
{[%clk 0:01:22.7]} 18. Qe4 {[%clk 0:00:06.6]} 18... Kb8 {[%clk 0:01:11.1]} 19.
Nd5 {[%clk 0:00:06.4]} 19... Bxf3 {[%clk 0:01:05.4]} 20. Qxf3 {[%clk 0:00:05.4]}
20... Bxh4 {[%clk 0:01:06.1]} 21. c4 {[%clk 0:00:02.7]} 21... e4 {[%clk
0:01:04.3]} 22. Qf4 {[%clk 0:00:01.8]} 22... g5 {[%clk 0:01:03.7]} 23. Qxf7
{[%clk 0:00:01.4]} 23... Rhf8 {[%clk 0:01:01.5]} 0-1

[Event "*** SCC Grand Prix: Titled Tuesday Blitz"]
[Site "Chess.com"]
[Date "2020.09.08"]
[Round "8"]
[White "Taron_Shagbazyan"]
[Black "sodastream007"]
[Result "0-1"]
[WhiteElo "2671"]
[BlackElo "2563"]
[TimeControl "180+1"]
[EndTime "11:35:21 PDT"]
[Termination "sodastream007 won by checkmate"]

1. d4 {[%clk 0:03:00.9]} 1... d5 {[%clk 0:02:59.7]} 2. c4 {[%clk 0:03:01.1]}
2... c6 {[%clk 0:02:59.7]} 3. Nf3 {[%clk 0:03:01.3]} 3... Nf6 {[%clk 0:02:59.3]}
4. Nbd2 {[%clk 0:03:00.8]} 4... e6 {[%clk 0:02:55.9]} 5. g3 {[%clk 0:03:00.9]}
5... Nbd7 {[%clk 0:02:54.2]} 6. Bg2 {[%clk 0:03:01.2]} 6... Bd6 {[%clk
0:02:53.4]} 7. O-O {[%clk 0:03:01.3]} 7... O-O {[%clk 0:02:52]} 8. b3 {[%clk
0:02:58.1]} 8... e5 {[%clk 0:02:49.7]} 9. cxd5 {[%clk 0:02:54.7]} 9... e4 {[%clk
0:02:46.9]} 10. Nh4 {[%clk 0:02:31.6]} 10... cxd5 {[%clk 0:02:46.9]} 11. Nf5
{[%clk 0:02:30.9]} 11... Bb4 {[%clk 0:02:43.8]} 12. Bb2 {[%clk 0:02:27.1]} 12...
Nb8 {[%clk 0:02:40]} 13. Ne3 {[%clk 0:02:26.6]} 13... Re8 {[%clk 0:02:37.7]} 14.
h3 {[%clk 0:02:17.1]} 14... Nc6 {[%clk 0:02:34.7]} 15. a3 {[%clk 0:02:15.6]}
15... Bd6 {[%clk 0:02:32.3]} 16. b4 {[%clk 0:02:14.8]} 16... Be6 {[%clk
0:02:29.2]} 17. Nb3 {[%clk 0:02:14.5]} 17... b6 {[%clk 0:02:27.2]} 18. Rc1
{[%clk 0:02:13.6]} 18... Ne7 {[%clk 0:02:25.1]} 19. Bc3 {[%clk 0:01:48.6]} 19...
Qd7 {[%clk 0:02:22.3]} 20. Kh2 {[%clk 0:01:47.6]} 20... h5 {[%clk 0:02:22.8]}
21. Be1 {[%clk 0:01:39.2]} 21... h4 {[%clk 0:02:22.9]} 22. Nc2 {[%clk
0:01:32.3]} 22... Nh5 {[%clk 0:02:17.7]} 23. e3 {[%clk 0:01:31.6]} 23... g6
{[%clk 0:02:12.9]} 24. Rg1 {[%clk 0:01:18.1]} 24... Nf5 {[%clk 0:02:08.5]} 25.
Bf1 {[%clk 0:01:16.7]} 25... hxg3+ {[%clk 0:02:02.6]} 26. fxg3 {[%clk
0:01:16.1]} 26... Nh4 {[%clk 0:02:03.2]} 27. Be2 {[%clk 0:01:14.5]} 27... Bxh3
{[%clk 0:02:02.6]} 28. Bxh5 {[%clk 0:00:58]} 28... gxh5 {[%clk 0:01:55.2]} 29.
Qxh5 {[%clk 0:00:56.2]} 29... Nf3+ {[%clk 0:01:54.8]} 30. Kh1 {[%clk 0:00:56.5]}
30... Bg4 {[%clk 0:01:55.1]} 31. Qxd5 {[%clk 0:00:51.9]} 31... Kg7 {[%clk
0:01:50.6]} 32. Kg2 {[%clk 0:00:49.8]} 32... Rh8 {[%clk 0:01:44.1]} 33. Kf1
{[%clk 0:00:43.8]} 33... Rh2 {[%clk 0:01:41.5]} 34. Bf2 {[%clk 0:00:44]} 34...
Bh3+ {[%clk 0:01:30.3]} 35. Ke2 {[%clk 0:00:43.7]} 35... Rc8 {[%clk 0:01:27.3]}
36. Nd2 {[%clk 0:00:20.1]} 36... Qg4 {[%clk 0:01:20.7]} 37. Qxe4 {[%clk
0:00:18.3]} 37... Nxg1+ {[%clk 0:01:16.4]} 38. Kd3 {[%clk 0:00:15.4]} 38... Qe2#
{[%clk 0:01:17.3]} 0-1

[Event "*** SCC Grand Prix: Titled Tuesday Blitz"]
[Site "Chess.com"]
[Date "2020.09.08"]
[Round "8"]
[White "gmasterkiller"]
[Black "LiemLe"]
[Result "1/2-1/2"]
[WhiteElo "2585"]
[BlackElo "2959"]
[TimeControl "180+1"]
[EndTime "11:35:32 PDT"]
[Termination "Game drawn by repetition"]

1. e4 {[%clk 0:03:00.9]} 1... c6 {[%clk 0:02:50.6]} 2. d4 {[%clk 0:02:58.5]}
2... d5 {[%clk 0:02:51.5]} 3. Nc3 {[%clk 0:02:58.6]} 3... dxe4 {[%clk
0:02:51.5]} 4. Nxe4 {[%clk 0:02:59.5]} 4... Bf5 {[%clk 0:02:51.6]} 5. Ng3 {[%clk
0:02:59.2]} 5... Bg6 {[%clk 0:02:51.8]} 6. h4 {[%clk 0:02:59]} 6... h6 {[%clk
0:02:52.1]} 7. Nf3 {[%clk 0:02:59.4]} 7... e6 {[%clk 0:02:51]} 8. Ne5 {[%clk
0:02:55.9]} 8... Bh7 {[%clk 0:02:50.8]} 9. Bd3 {[%clk 0:02:52.1]} 9... Bxd3
{[%clk 0:02:50.7]} 10. Qxd3 {[%clk 0:02:51.9]} 10... Nd7 {[%clk 0:02:51]} 11.
Bf4 {[%clk 0:02:48.9]} 11... Nxe5 {[%clk 0:02:50.4]} 12. Bxe5 {[%clk 0:02:48.4]}
12... Qa5+ {[%clk 0:02:50.8]} 13. c3 {[%clk 0:02:47.7]} 13... Nf6 {[%clk
0:02:51.2]} 14. Ne4 {[%clk 0:02:43.8]} 14... Ng4 {[%clk 0:02:33.4]} 15. Bg3
{[%clk 0:02:38.2]} 15... Be7 {[%clk 0:02:23.1]} 16. O-O {[%clk 0:02:14]} 16...
O-O {[%clk 0:02:21.9]} 17. b4 {[%clk 0:02:04.8]} 17... Qh5 {[%clk 0:02:10]} 18.
f3 {[%clk 0:02:03.5]} 18... Nf6 {[%clk 0:02:09.2]} 19. Nxf6+ {[%clk 0:02:00.4]}
19... Bxf6 {[%clk 0:02:10.1]} 20. Qe4 {[%clk 0:02:00.9]} 20... a5 {[%clk
0:02:08.8]} 21. a3 {[%clk 0:01:58.1]} 21... Ra6 {[%clk 0:02:03.2]} 22. Be5
{[%clk 0:01:56.8]} 22... Qxh4 {[%clk 0:01:56.4]} 23. Qxh4 {[%clk 0:01:50.9]}
23... Bxh4 {[%clk 0:01:57.3]} 24. b5 {[%clk 0:01:48.2]} 24... cxb5 {[%clk
0:01:56.6]} 25. Rfb1 {[%clk 0:01:42.8]} 25... Rc8 {[%clk 0:01:56.1]} 26. Rxb5
{[%clk 0:01:42]} 26... Rxc3 {[%clk 0:01:52.8]} 27. Rxb7 {[%clk 0:01:41.5]} 27...
f6 {[%clk 0:01:29.7]} 28. Bf4 {[%clk 0:01:29.5]} 28... Bg5 {[%clk 0:01:12.2]}
29. Bxg5 {[%clk 0:01:22.1]} 29... hxg5 {[%clk 0:01:13.1]} 30. Rab1 {[%clk
0:01:21.2]} 30... g4 {[%clk 0:00:56.1]} 31. Re7 {[%clk 0:01:04.6]} 31... g3
{[%clk 0:00:55.7]} 32. Kf1 {[%clk 0:01:00.7]} 32... Rac6 {[%clk 0:00:41.6]} 33.
Rbb7 {[%clk 0:01:00.4]} 33... Re3 {[%clk 0:00:41.4]} 34. Rxg7+ {[%clk
0:00:59.2]} 34... Kf8 {[%clk 0:00:41.3]} 35. Rxg3 {[%clk 0:00:47.2]} 35... Rxa3
{[%clk 0:00:41.1]} 36. Rh3 {[%clk 0:00:41]} 36... Kg8 {[%clk 0:00:41.3]} 37.
Rg3+ {[%clk 0:00:40.5]} 37... Kf8 {[%clk 0:00:41.6]} 38. Rh3 {[%clk 0:00:40.8]}
38... Kg8 {[%clk 0:00:39.6]} 39. Rg3+ {[%clk 0:00:41]} 39... Kf8 {[%clk
0:00:38.8]} 1/2-1/2